Cogmind - Beta 17 @@@ ROGUE MODE // 2026.07.12 @ 03:27:29 Player: alice_fexa Result: Destroyed by D-53 Grenadier with Mini Grenade Launcher Performance ------------- Evolutions (0) 0 Regions Visited (2) 400 Robots Destroyed (28) 140 Value Destroyed (545) 545 Prototype IDs (0) 0 Alien Tech Used (0) 0 Bonus (5400) 5400 TOTAL SCORE: 6485 Bonus ------- Prayed to X0-1V1 5000 Major X0-1V1 Interference 400 Cogmind --------- Core Integrity 0/190 Matter 277/300 Energy 100/100 System Corruption 1% Temperature Cool (0) Movement Core (350) Ox6 Location -10/Mines Parts ------- > --- POWER (1) -------- (None) > --- PROPULSION (3) --- (None) > --- UTILITY (2) ------ Large Storage Unit Targeting Computer > --- WEAPON (1) ------- (None) > --- INVENTORY (15) --- Ion Engine Wheel Heat Sink Heat Sink Medium Matter Pod (100) X0-1V1's Piety Tracker Particle Gun Particle Cannon Assault Rifle Assault Rifle Light Assault Rifle Light Assault Rifle Light Cannon Flail Mining Claw Peak State ------------ > --- POWER ------------ Light Nuclear Core > --- PROPULSION ------- Light Treads Light Treads Light Treads > --- UTILITY ---------- Large Storage Unit Targeting Computer > --- WEAPON ----------- Light Cannon > --- INVENTORY -------- Ion Engine Light Ion Engine Heat Sink Heat Sink Medium Matter Pod X0-1V1's Piety Tracker Particle Gun Particle Cannon Assault Rifle Assault Rifle Light Assault Rifle Light Assault Rifle Light Cannon Flail Mining Claw [Rating: 12] Favorites ----------- Power Ion Engine Engine Ion Engine Power Core Light Nuclear Core Propulsion Light Treads Treads Light Treads Wheel Wheel Utility Targeting Computer Storage Large Storage Unit Processor Targeting Computer Weapon Assault Rifle Ballistic Gun Assault Rifle Ballistic Cannon Light Cannon Build | -11 -10 -10 ------- Run | Yrd Mat Min Slots Evolved . | . . . Power . | . . . Propulsion . | . . . Utility . | . . . Weapon . | . . . Parts Attached 19 | 6 8 5 Power 6 | 1 3 2 Engine 5 | 1 3 1 Core 1 | . . 1 Reactor . | . . . Propulsion 5 | 2 1 2 Treads 4 | 2 1 1 Leg . | . . . Wheel 1 | . . 1 Hover . | . . . Flight . | . . . Utility 3 | 1 2 . Device . | . . . Storage 2 | 1 1 . Processor 1 | . 1 . Hackware . | . . . Protection . | . . . Artifact . | . . . Weapon 5 | 2 2 1 Energy Gun . | . . . Energy Cannon . | . . . Ballistic Gun 4 | 2 2 . Ballistic Cannon 1 | . . 1 Launcher . | . . . Special Weapon . | . . . Impact Weapon . | . . . Slashing Weapon . | . . . Piercing Weapon . | . . . Special Melee Weapon . | . . . Unidentified Prototypes . | . . . Parts Lost 9 | . 1 8 Power 2 | . . 2 Propulsion 5 | . 1 4 Utility . | . . . Weapon 2 | . . 2 Highest Loss Streak 5 | . 1 5 To Critical Strikes . | . . . Average Backups 12 | 2 12 14 Power 1 | . 1 1 Propulsion 1 | 1 1 . Utility 2 | . 2 4 Weapon 6 | . 6 8 Tool/Special . | . . . Unused Backups 19 | . 4 15 Power 1 | . . 1 Propulsion 3 | . 1 2 Utility 5 | . 2 3 Weapon 10 | . 1 9 Tool/Special . | . . . Average Slot Usage (%) 98 | . 98 98 Engine 11 | . 14 5 Core 2 | . . 7 Treads 29 | . 27 32 Storage 14 | . 14 14 Processor 13 | . 13 14 Ballistic Gun 23 | . 28 14 Ballistic Cannon 1 | . . 6 Peak Build Rating 12 | 6 9 12 Average Rating 8 | 4 7 10 On Entrance 5 | . 6 9 Avg Prop Armor Cover (%) 21 | . . 21 Naked Turns . | . . . Heaviest Build 29 | 12 29 29 Greatest Support 60 | 40 40 60 Greatest Overweight (x) 2 | . 1 2 Average Overweight (x) . | . . . Largest Inventory Capacity 15 | 8 15 15 Average Capacity 14 | 7 14 15 Most Carried 15 | 5 15 15 Average Carried 13 | 2 12 14 Final Capacity 15 | 8 15 15 Final Carried 15 | 5 15 15 Class Distribution -------------------- 100% | Mutant Dominant Class ---------------- Mutant | -10/Materials Mutant | -10/Mines Resources | -11 -10 -10 ----------- Run | Yrd Mat Min Matter Collected 1032 | 268 502 262 Remotely . | . . . Salvage Created 1103 | 72 810 221 Parts 56 | 8 39 9 Haulers Intercepted 2 | . 2 . Recyclers Shooed 1 | . 1 . Parts Field Recycled . | . . . Retrieved Matter . | . . . Parts Self-Destructed . | . . . Prevented . | . . . Parts Restored . | . . . Kills | -11 -10 -10 ------- Run | Yrd Mat Min Combat Hostiles Destroyed 28 | . 13 15 Guns 16 | . 13 3 Cannons 12 | . . 12 Classes Destroyed 9 | 2 5 2 Worker 2 | . 2 . Tunneler 2 | 1 1 . Hauler 2 | . 2 . Recycler 4 | 1 3 . Watcher 2 | . 2 . Swarmer 5 | . 5 . Grunt 10 | . 8 2 Demolisher 1 | . . 1 Assembled 12 | . . 12 Best Kill Streak 4 | 1 4 4 Combat Bots Only 4 | . 4 4 Max Kills in Single Turn 1 | 1 1 1 Gunslinging . | . . . Exploded . | . . . Melee . | . . . Uniques/NPCs Destroyed . | . . . Combat | -11 -10 -10 -------- Run | Yrd Mat Min Hostile Shots Fired 116 | . 57 59 Missed 28 | . 11 17 Hits 88 | . 46 42 Melee 6 | . . 6 Projectile 82 | . 46 36 AOE 9 | . . 9 Part Disruptions 1 | . . 1 Damage Taken 1362 | . 494 868 Core 247 | . 53 194 Absorbed by Shields . | . . . Regen/Repaired (Parts) 88 | . 88 . Core Remaining (%) 100 | 100 . . Volleys Fired 128 | 4 58 66 Largest 2 | 2 2 2 Hottest 40 | 40 40 40 Shots Fired 195 | 8 116 71 Gun 139 | 8 116 15 Cannon 56 | . . 56 Launcher . | . . . Special . | . . . Kinetic 195 | 8 116 71 Thermal . | . . . Explosive . | . . . Electromagnetic . | . . . Robot Hit Streak 12 | 4 12 8 Robot Miss Streak 3 | 1 3 3 Penetration Max . | . . . Secondary Targets 1 | . 1 . Max Gunslinging Chain 1 | . 1 . Shots Hit Robots 130 | 6 77 47 Core Hits 64 | 4 33 27 Critical Kills . | . . . Critical Parts Destroyed . | . . . Critical Strikes . | . . . Melee Attacks . | . . . Impact . | . . . Slashing . | . . . Piercing . | . . . Sneak Attacks . | . . . Combat Hostiles . | . . . Follow-up Attacks . | . . . Damage Inflicted 1813 | 47 991 775 Guns 1178 | 47 990 141 Cannons 634 | . . 634 Explosions . | . . . Melee . | . . . Ramming 1 | . 1 . Kinetic 1812 | 47 990 775 Thermal . | . . . Explosive . | . . . Electromagnetic . | . . . Impact . | . . . Slashing . | . . . Piercing . | . . . Highest Corruption 1 | . . 1 Average Corruption 1 | . . 1 Corruption Purged . | . . . Corruption Blocked . | . . . Effects 3 | . . 3 Matter Fused 1 | . . 1 Energy Discharges 2 | . . 2 Overload Shots . | . . . Overflow Damage 42 | . . 42 Projectiles 42 | . . 42 Explosions . | . . . Melee . | . . . Knockbacks 10 | . . 10 Impact . | . . . Kinetic 10 | . . 10 Secondary . | . . . Self-Inflicted Damage . | . . . Shots . | . . . Rammed 1 | . 1 . Targets Rammed 1 | . 1 . Kicked . | . . . Crushed . | . . . Highest Temperature 17 | . 2 17 Average Temperature 5 | . 2 12 Received Heat Transfer 241 | . 183 58 Siege Activations . | . . . Martial Activations . | . . . Shielding Activations . | . . . Robots Disrupted . | . . . Combat Hostiles . | . . . Robots Corrupted . | . . . Combat Hostiles . | . . . Parts Fried . | . . . Impact Corruptions . | . . . Robots Melted . | . . . Combat Hostiles . | . . . Parts Melted . | . . . Heat Transferred . | . . . Parts Sabotaged . | . . . Parts Stolen . | . . . Parts Stripped . | . . . Power Chain Reactions . | . . . Alert | -11 -10 -10 ------- Run | Yrd Mat Min Maximum Alert Level . | . . . Low Security (%) 100 | 100 100 100 Level 1 . | . . . Level 2 . | . . . Level 3 . | . . . Level 4 . | . . . Level 5 . | . . . High Security . | . . . Max Security . | . . . Peak Influence 85 | 5 85 40 Initial 10 | . . 10 Average 17 | 1 24 3 Influence Increases 506 | 10 416 80 Destroy 0b10 Robot/C 320 | . 260 60 Destroy 0b10 Robot/NC 60 | 10 50 . Destroy Leader 78 | . 58 20 Successful Hack 15 | . 15 . Destroy Structure 3 | . 3 . Lose Combat Pursuer 30 | . 30 . Influence Decreases 506 | 10 389 107 Entered New Map 17 | . . 17 Time Decay 467 | 10 389 68 Lost Part 22 | . . 22 Squads Dispatched 3 | . 3 . Investigation . | . . . Extermination . | . . . Reinforcement 3 | . 3 . Assault . | . . . Garrison . | . . . Intercept . | . . . Searches Triggered . | . . . Construction Impeded . | . . . Haulers Reinforced . | . . . Active Scanning Responses . | . . . Cargo Convoy Interrupts . | . . . Stealth | -11 -10 -10 --------- Run | Yrd Mat Min Distress Signals . | . . . Communications Jammed . | . . . Distress Signals . | . . . Times Spotted 44 | . 25 19 Peak Tracking Total 5 | . 5 2 Tactical Retreats 6 | . 2 4 Traps | -11 -10 -10 ------- Run | Yrd Mat Min Traps Triggered 1 | . 1 . Indirectly . | . . . Trap Hack Attempts . | . . . Triggered . | . . . Disarmed . | . . . Reprogrammed . | . . . Reused . | . . . Traps Extracted . | . . . Installed . | . . . Triggered . | . . . Machines | -11 -10 -10 ---------- Run | Yrd Mat Min Machines Disabled . | . . . Max in Single Turn . | . . . Machines Repaired . | . . . Machines Dismantled . | . . . Machines Sabotaged . | . . . Overloaded Fab Kills . | . . . Hacking | -11 -10 -10 --------- Run | Yrd Mat Min Machines Accessed 8 | . 8 . Terminals 5 | . 5 . Fabricators . | . . . Repair Stations 1 | . 1 . Recycling Units 2 | . 2 . Scanalyzers . | . . . Garrison Access . | . . . Total Hacks 23 | . 23 . Successful 16 | . 16 . Failed 7 | . 7 . Catastrophic . | . . . Database Lockouts . | . . . Manual 10 | . 10 . Terminals 12 | . 12 . Fabricators . | . . . Repair Stations 6 | . 6 . Recycling Units 5 | . 5 . Scanalyzers . | . . . Garrison Access . | . . . Terminal Hacks 1 | . 1 . Robot Analysis 1 | . 1 . Fabricator Hacks . | . . . Repair Station Hacks 3 | . 3 . Scan Component 2 | . 2 . Repair 1 | . 1 . Recycling Unit Hacks 4 | . 4 . Retrieve Components 4 | . 4 . Scanalyzer . | . . . Garrison Access Hacks . | . . . Unauthorized Hacks 7 | . 7 . Terminals 7 | . 7 . Botnet 2 | . 2 . Skim 5 | . 5 . Fabricators . | . . . Repair Stations . | . . . Recycling Units . | . . . Scanalyzers . | . . . Garrison Access . | . . . Data Cores Recovered . | . . . Used . | . . . Hacking Detections 4 | . 4 . Full Trace Events 1 | . 1 . Feedback Events . | . . . Feedback Blocked . | . . . Robot Schematics Acquired . | . . . Robots Built . | . . . Authchips . | . . . Time . | . . . Total Robot Build Rating . | . . . Part Schematics Acquired . | . . . Parts Built . | . . . Authchips . | . . . Time . | . . . Total Part Build Rating . | . . . Part Studies Acquired . | . . . Parts Repaired 1 | . 1 . Time 26 | . 26 . Parts Recycled . | . . . Recycled Matter . | . . . Retrieved Matter . | . . . Retrieved Components 12 | . 12 . Parts Scanalyzed . | . . . Part Schematics Acquired . | . . . Parts Damaged . | . . . Bothacking | -11 -10 -10 ------------ Run | Yrd Mat Min Used RIF Installer . | . . . Robots Hacked . | . . . Non-combat . | . . . Combat . | . . . Robot Hacks Applied . | . . . Relay Couplers Released . | . . . Fabnet Peak Effective % . | . . . Robots Rewired . | . . . Allies Hacked . | . . . Hacks Repelled . | . . . Allies | -11 -10 -10 -------- Run | Yrd Mat Min Total Allies . | . . . Largest Group . | . . . Highest-Rated Group . | . . . Highest-Rated Ally . | . . . Total Orders . | . . . Ally Attacks . | . . . Total Damage . | . . . Kills . | . . . Allies Corrupted . | . . . Allies Melted . | . . . X0-1V1 Amusement Gains 25 | . 5 20 Good Acts 4 | . . 4 Bad Acts 3 | . 1 2 Intel | -11 -10 -10 ------- Run | Yrd Mat Min Active Infowar (turns) . | . . . Robot Analysis Total 1 | . 1 . Derelict Logs Recovered . | . . . Drone Launches . | . . . Drone Recoveries . | . . . Exploration | -11 -10 -10 ------------- Run | Yrd Mat Min Turns Passed 2530 | 111 1682 737 Spaces Moved 1266 | 57 862 347 Core 7 | 7 . . Treads 1208 | 50 862 296 Legs . | . . . Wheels 51 | . . 51 Hover . | . . . Flight . | . . . Fastest Speed 50 | 50 160 110 Average Speed 157 | 146 160 152 Slowest Speed 240 | 160 240 160 Overloaded Moves . | . . . Propulsion Burnouts . | . . . Robots Hopped . | . . . Potential Cave-ins . | . . . Cave-ins Triggered . | . . . Exploration Rate (%) 55 | 5 97 63 Regions Visited 2 Branch Regions 1 Pre-discovered Areas 1 | . 1 . Known Exits Taken . | . . . Unknown Exits Taken 2 | 1 1 . Scrap Searched 1 | . . 1 Spaces Dug . | . . . Terrain Destroyed . | . . . Melee . | . . . Projectile . | . . . AOE . | . . . Terrain Rammed . | . . . Walls Destroyed . | . . . Machines Disabled . | . . . Actions | -11 -10 -10 --------- Run | Yrd Mat Min Total 1612 | 75 1053 484 Wait 162 | 4 99 59 Move 1264 | 56 861 347 Hop . | . . . Pick Up 24 | 5 15 4 Fast Attach 9 | 6 2 1 Attach 4 | . 1 3 Detach . | . . . Swap 7 | . 6 1 Drop 13 | . 10 3 Fire 128 | 4 58 66 Melee . | . . . Ram . | . . . Kick . | . . . Crush 1 | . 1 . Escape Stasis . | . . . Rewire . | . . . Trap . | . . . Miscellaneous . | . . . Route ------- -11/Scrapyard -10/Materials (discovered 6 exits: *Mat x3 / [*Min x2] / [*Sub]) -10/Mines (discovered 2 exits: *Mat / Exi) History --------- Turn | Location | Event 12 | -11/Scrapyard | Discovered new exit (range 15) 112 | -11/Scrapyard | Entered Materials 310 | -10/Materials | Build established: Mutant 561 | -10/Materials | Discovered new exit (range 15) 654 | -10/Materials | Identified exit to Materials 725 | -10/Materials | Loaded intel: 19 trap records 743 | -10/Materials | Learned location of 2 exits from Mines 766 | -10/Materials | Discovered new exit (range 8) 836 | -10/Materials | Discovered new exit (range 15) 1129 | -10/Materials | Discovered new exit (range 12) 1652 | -10/Materials | Repaired Lgt. Treads 1755 | -10/Materials | Prayed at D.C.S.S. Altar Unit 1794 | -10/Materials | Entered Mines 1795 | -10/Mines | Identified exit to Exiles 1816 | -10/Mines | Met a Derelict bent on vengeance 1952 | -10/Mines | Melee accuracy permanently improved by X0-1V1 (+6%; -60 max core) 1973 | -10/Mines | Found a Scrap Suit stashed away for nefarious purposes 2140 | -10/Mines | Assembled infested the area 2165 | -10/Mines | X0-1V1 mutated your Weapon slot to Propulsion slot 2510 | -10/Mines | Core integrity fell below 50% 2530 | -10/Mines | Core integrity fell below 20% 2531 | -10/Mines | Destroyed by D-53 Grenadier with Mini Grenade Launcher Last Messages --------------- 02488_ K-01 Serf collects debris. 02490_ Acquired 4 matter. 02492_ K-01 Serf collects debris. 02496_ U-05 Engineer lays Concrete. 02497_ U-05 Engineer builds a Wall. 02500_ K-01 Serf collects debris. 02509_ U-05 Engineer destroyed. 02512_ D-53 Grenadier destroyed. 02513_ K-01 Serf collects debris. 02518_ Lgt. Ion Engine destroyed. 02518_ Lgt. Treads destroyed. 02519_ The unstable cave ceiling collapses. 02520_ System corrupted: Energy discharge (-31). 02521_ K-01 Serf collects debris. 02526_ Wheel destroyed. 02527_ Destroyed Shock Absorption System. 02527_ D-53 Grenadier knocked back. 02529_ Lgt. Treads destroyed. 02531_ Lgt. Cannon destroyed. 02531_ X0-1V1 chuckles heartily! Map ----- +----------------------------------------------------+ | | | | | | | | | | | | | | | | | ?????????????????????????????????????????????????? | | ?????????????????????????????????????????????????? | | ?????????????????????????????????????????????????? | | ???????????????????????#####?????????????????????? | | ??????????????????????## #?????????????????????? | | ??????????????????????# #?????????????????????? | | ??????????????????????# #?????????????????###?? | | ??????????????????????## ##???????????????## ## | | ?????????????####?????## ##??????????????# # | | ????????????## ##????# ##????????????## | | ????????????# ###??# #???######???# | | ?????????????# ##?## ##?# ##??# | | ??????????????# ##### ## #???# | | ??????????????# ## #????# | | ?????????????## #??????# # | | ????????????## #####??????# # | | ???????????## ##??????????# # | | ???????????# @ ##???????????# # | | ???###????## ##???????????# # | | ??## ### ##??????????# # | | ??# = ############ # | | ?# # | | ## %! %=%! | | ######### != ! ! ########## | | ?????????## %%* ## #????????? | | ???????????## d## #### ##????????? | | ##??????????????# ### ##??## #?????????? | | ?????????????#### #%%#?## ##????## ##?????????? | | ??????????????# #??####??????####??????????? | | ??????????????# #??????????????????????????? | | ??????????????# % #####??????????????????????????? | | ??????????????# #??????????????????????????????? | | ??????????????# #????????????????#####??????????? | | ??????????????# #???????????????## ##?????????? | | ??????????????# #????????????#### ##????????? | | ??????????????# #???????????## ##???????? | | ??????????????# #???????????# ####???## | | ??????????????# #???????????# < #??## | | ??????????????# #???????????## ### ### #### | | ?????????????? #????????????### #?## #?# = | | ??????????????####?????????###### #??# #?# *= = | | ???????????????????????????# % #### #?####%### | +----------------------------------------------------+ Best States ------------- Heat Dissipation 25 Energy Generation 14 Energy Capacity 250 Matter Stores 300 Matter Capacity 300 Sight Range 16 Terrain Scan Density 10 Evasion (%) 40 Targeting Accuracy 5 Recoil Reduction 3 Item Schematics ----------------- None Robot Schematics ------------------ None Fabricated ------------ Nothing Repaired ---------- Lgt. Treads | 37% | -10/Materials Studied --------- None Alien Tech Used ----------------- None Achievements -------------- None Challenges ------------ None Game ------ Seed GodCannonClaw Manual? 0 Play Time 00:13:43 Cumulative 1680.2 hours Start 2026.07.12 @ 03:16:38 End 2026.07.12 @ 03:27:29 Sessions 1 Manual Loads 0 Difficulty Rogue Special Mode None Game No. 1197 Rogue 1157 Adventurer 40 Explorer 0 Win Type - Total 220 Types 104/11/74/2/2/4/16/2/1/4 Lore% 97 Gallery% 96 Achievement% 88 Wizard Run 0 Options --------- Layout 0 ASCII 0 Keyboard 0 Movement Numpad Keybinds 0 Fullscreen 0 Font 20/Terminus Map View 76x50 Zoom Use 0% Tactical HUD 1 Map Filters NONE Filters NONE Steam 1 RUN: 072d806d-2af1-4975-aac0-33facaf5973d